Workbook

Sheet CIIU
A1: Numero | B1: Actividad
A2: 56210 | B2: Abastecimiento de eventos
A3: 31002 | B3: Acabado de muebles de madera, excepto tapicería
A4: 13130 | B4: Acabado de productos textiles
A5: 85492 | B5: Academias de conductores
A6: 62020 | B6: Act. de consultoría informática y de adm. de medios informát
A7: 39000 | B7: Act. de saneamiento y otros servicios de gestión de desechos
A8: 98100 | B8: Act. Indiferenc. produc. de bienes de los hogares uso propio
A9: 91030 | B9: Activ. de jardines botánicos, zoológicos, parques naturales.
A10: 84230 | B10: Activ. de mantenimiento del orden público y de seguridad
A11: 74102 | B11: Actividad de diseño de modas
A12: 66121 | B12: Actividad de las casas de cambio
A13: 70202 | B13: Actividad de las gestorías
A14: 66122 | B14: Actividad de los corredores de cambio y de valores
A15: 64923 | B15: Actividad de los prestamistas
A16: 81100 | B16: Actividades combinadas de apoyo a instalaciones
A17: 82910 | B17: Actividades de agencias de cobranza y oficinas de crédito
A18: 78100 | B18: Actividades de agencias de colocación de empleados
A19: 63910 | B19: Actividades de agencias de noticias
A20: 78200 | B20: Actividades de agencias de trabajo temporal
A21: 79110 | B21: Actividades de agencias de viajes
A22: 55130 | B22: Actividades de alojamiento en albergues
A23: 55192 | B23: Actividades de alojamiento en estancias turísticas
A24: 55110 | B24: Actividades de alojamiento en hoteles
A25: 55191 | B25: Actividades de alojamiento en pensiones de corto plazo
A26: 55901 | B26: Actividades de alojamiento pensiones familiares sin servicio
A27: 55120 | B27: Actividades de alojamiento transitorio: hoteles alta rotativ
A28: 9900 | B28: Actividades de apoyo a explotación de otras minas y canteras
A29: 9100 | B29: Actividades de apoyo a extracción de petróleo y gas natural
A30: 90000 | B30: Actividades de arte, entretenimiento y creatividad
A31: 91010 | B31: Actividades de Bibliotecas y archivos
A32: 82200 | B32: Actividades de centros de llamados
A33: 93120 | B33: Actividades de clubes deportivos
A34: 94991 | B34: Actividades de comisiones de fomento escolares y liceales
A35: 71102 | B35: Actividades de diseño de paisajes
A36: 59130 | B36: Actividades de distribución películas y programas TV
A37: 82920 | B37: Actividades de embalaje
A38: 74200 | B38: Actividades de fotografía
A39: 59200 | B39: Actividades de grabación y publicación grabaciones sonoras.
A40: 86100 | B40: Actividades de hospitales
A41: 43901 | B41: Actividades de impermeabilización de edificios.
A42: 18111 | B42: Actividades de impresión de diarios y revistas.
A43: 80300 | B43: Actividades de investigación
A44: 84110 | B44: Actividades de la administración pública en general
A45: 92002 | B45: Actividades de la banca de loterías y quinielas
A46: 92003 | B46: Actividades de las agencias y sub agencias de quinielas
A47: 94999 | B47: Actividades de las sociedades literarias, cívicas y sociales
A48: 66220 | B48: Actividades de los agentes y corredores de seguro
A49: 92001 | B49: Actividades de los casinos
A50: 91020 | B50: Actividades de Museos y preservación de lugares históricos
A51: 79120 | B51: Actividades de operadores turísticos
A52: 94110 | B52: Actividades de organizaciones empresariales y de empleadores
A53: 94120 | B53: Actividades de organizaciones profesionales
A54: 99000 | B54: Actividades de organizaciones y órganos extraterritoriales.
A55: 93210 | B55: Actividades de parques de atracciones y parques temáticos
A56: 59110 | B56: Actividades de producción de películas y programas de TV
A57: 62010 | B57: Actividades de programación informática
A58: 96095 | B58: Actividades de prostíbulos y similares
A59: 59140 | B59: Actividades de proyección de películas.
A60: 82110 | B60: Actividades de servicio administrativa combinadas de oficina
A61: 52230 | B61: Actividades de servicio secundario de transporte vía aérea
A62: 52220 | B62: Actividades de servicio secundario transporte vía acuática
A63: 94200 | B63: Actividades de sindicatos
A64: 64200 | B64: Actividades de sociedades de control (holding)
A65: 1907 | B65: Actividades no bien especificadas
A66: 1630 | B66: Actividades posteriores a la cosecha
A67: 59120 | B67: Actividades posteriores a la prod. de películas y progr. TV
A68: 75000 | B68: Actividades veterinarias
A69: 3210 | B69: Acuicultura marítima
A70: 66110 | B70: Administración de mercados financieros
A71: 93119 | B71: Administración de otro tipo de instalaciones deportivas
A72: 66301 | B72: AFAPs
A73: 45409 | B73: Agentes comisionistas y otros tipos comercio de motocicletas
A74: 52292 | B74: Agentes de transporte aéreo
A75: 52293 | B75: Agentes de transporte férreo y carretero
A76: 52291 | B76: Agentes de transporte marítimo
A77: 37000 | B77: Alcantarillado
A78: 77220 | B78: Alquiler de cintas de vídeo y discos
A79: 77304 | B79: Alquiler de eq. de computación y oficina sin operario
A80: 77302 | B80: Alquiler de equipo agrícola sin operario
A81: 77303 | B81: Alquiler de equipo de construcción sin operario
A82: 77301 | B82: Alquiler de maquinaria manufacturera sin operario
A83: 77309 | B83: Alquiler de otro tipo de maq., equipo y mercancías tangibles
A84: 77290 | B84: Alquiler de otros efectos personales y art. domésticos ncp
A85: 1491 | B85: Apicultura: producción de cera y miel de abeja.
A86: 43902 | B86: Armado y desarmado de plataformas y andamios
A87: 68203 | B87: Arrendamiento de inmuebles rurales
A88: 64910 | B88: Arrendamiento financiero
A89: 77400 | B89: Arrendamiento prop.intelectual y similares exc. dchos autor
A90: 16102 | B90: Aserrado, cepillado y trabajo a máquina de la madera.
A91: 68202 | B91: Avalúos de inmuebles
A92: 56301 | B92: Bares de expendio de bebidas
A93: 36000 | B93: Captación, tratamiento y suministro de agua
A94: 46106 | B94: Casas de remates
A95: 96039 | B95: Cementerios para humanos y otras actividades conexas n.c.p.
A96: 16101 | B96: Chipeado de madera
A97: 86203 | B97: Clínicas médicas de estética corporal
A98: 86201 | B98: Clínicas médicas, excepto de estética corporal
A99: 56302 | B99: Clubes nocturnos y similares con suministro de bebidas
A100: 43291 | B100: Colocación de aislamientos térmicos y acústicos
A101: 43302 | B101: Colocación de revestimientos de pisos y paredes
A102: 43303 | B102: Colocación de tabiques de yeso y cielorrasos
A103: 47714 | B103: Comercio por menor de prendas de vestir de cueros y pieles
A104: 47214 | B104: Comercio por menor de productos de panadería y confitería
A105: 46635 | B105: Comercio al por mayor de artículos sanitarios
A106: 46310 | B106: Comercio al por mayor de aves y sus productos
A107: 46303 | B107: Comercio al por mayor de bebidas importadas, excepto vinos
A108: 46304 | B108: Comercio al por mayor de bebidas nacionales, excepto vinos
A109: 46413 | B109: Comercio al por mayor de calzado
A110: 46305 | B110: Comercio al por mayor de chacinados
A111: 46301 | B111: Comercio al por mayor de comestibles, excepto carnes.
A112: 46693 | B112: Comercio al por mayor de desechos y materiales para reciclar
A113: 46495 | B113: Comercio al por mayor de electrodomésticos
A114: 46692 | B114: Comercio al por mayor de fertilizantes y agroquímicos
A115: 46203 | B115: Comercio al por mayor de flores y plantas
A116: 46494 | B116: Comercio al por mayor de juguetes
A117: 46201 | B117: Comercio al por mayor de lana, cuero y cerdas
A118: 46631 | B118: Comercio al por mayor de madera
A119: 46632 | B119: Comercio al por mayor de materiales de construcción
A120: 46620 | B120: Comercio al por mayor de metales y de minerales metalíferos.
A121: 46492 | B121: Comercio al por mayor de muebles y accesorios del hogar
A122: 46590 | B122: Comercio al por mayor de otro tipo de maquinaria y equipo.
A123: 46309 | B123: Comercio al por mayor de otros alimentos y bebidas
A124: 46699 | B124: Comercio al por mayor de otros productos n.c.p.
A125: 46412 | B125: Comercio al por mayor de prendas de vestir
A126: 46493 | B126: Comercio al por mayor de productos de cristalería y menage
A127: 46307 | B127: Comercio al por mayor de productos de la pesca
A128: 46691 | B128: Comercio al por mayor de productos químicos industriales
A129: 46302 | B129: Comercio al por mayor de productos vinícolas
A130: 46308 | B130: Comercio al por mayor de tabacos y cigarrillos
A131: 46411 | B131: Comercio al por mayor de textiles
A132: 46634 | B132: Comercio al por mayor de vidrio.
A133: 46900 | B133: Comercio al por mayor no especializado de otros productos.
A134: 47215 | B134: Comercio al por menor de pescados y mariscos
A135: 47736 | B135: Comercio al por menor de artesanías, fantasías y souvenirs
A136: 47741 | B136: Comercio al por menor de artículos de construcción usados
A137: 47521 | B137: Comercio al por menor de artículos de ferretería
A138: 47999 | B138: Comercio al por menor de artículos n.c.p.
A139: 47213 | B139: Comercio al por menor de aves y huevos
A140: 47631 | B140: Comercio al por menor de bicicletas
A141: 47717 | B141: Comercio al por menor de calzado
A142: 47733 | B142: Comercio al por menor de carbón y leña
A143: 47212 | B143: Comercio al por menor de carne y menudencias
A144: 47593 | B144: Comercio al por menor de cristalería y menage
A145: 47591 | B145: Comercio al por menor de electrodomésticos y accesorios
A146: 47216 | B146: Comercio al por menor de fiambres y productos de granja
A147: 47211 | B147: Comercio al por menor de frutas y verduras
A148: 47594 | B148: Comercio al por menor de instrumentos musicales y partituras
A149: 47640 | B149: Comercio al por menor de juegos y de juguetes
A150: 47611 | B150: Comercio al por menor de libros
A151: 47592 | B151: Comercio al por menor de muebles y accesorios para el hogar
A152: 47749 | B152: Comercio al por menor de otras mercancías de segunda mano
A153: 45109 | B153: Comercio al por menor de otros vehículos automotores
A154: 47713 | B154: Comercio al por menor de prendas de vestir de dama
A155: 47712 | B155: Comercio al por menor de prendas de vestir de hombres
A156: 47742 | B156: Comercio al por menor de prendas de vestir usada
A157: 47723 | B157: Comercio al por menor de productos veterinarios
A158: 47734 | B158: Comercio al por menor de relojes y joyas
A159: 47595 | B159: Comercio al por menor de sistemas de seguridad
A160: 47510 | B160: Comercio al por menor de textiles en almacenes especializado
A161: 45102 | B161: Comercio al por menor de vehículos nuevos
A162: 45103 | B162: Comercio al por menor de vehículos usados
A163: 47524 | B163: Comercio al por menor de vidrio plano - vidrierías
A164: 47119 | B164: Comercio al por menor en almacenes con despacho de bebidas
A165: 47111 | B165: Comercio al por menor en hipermercados
A166: 47113 | B166: Comercio al por menor en mini mercados
A167: 47112 | B167: Comercio al por menor en supermercados
A168: 47115 | B168: Comercio al por menor realizado por los free shops
A169: 47522 | B169: Comercio al por menos de pinturas y revestimientos similares
A170: 47991 | B170: Comercio ambulante al por menor de comestibles
A171: 47910 | B171: Comercio or menor a través de pedido por correo o Internet
A172: 46496 | B172: Comercio por mayor art. de papelería, libros y periódicos
A173: 46610 | B173: Comercio por mayor combustibles sólidos, líquidos y gaseosos
A174: 46306 | B174: Comercio por mayor de carne vacuna y menudencias
A175: 46510 | B175: Comercio por mayor de computadoras, periféricos y software
A176: 46520 | B176: Comercio por mayor de equipo electr. de telecomunicaciones
A177: 46202 | B177: Comercio por mayor de granos, semillas y frutas oleaginosas
A178: 46209 | B178: Comercio por mayor de otras mat. primas agropec. y animales
A179: 46633 | B179: Comercio por mayor de pinturas, papeles, revestimiento pisos
A180: 46499 | B180: Comercio por mayor instr. Music, ópticos, bicicl, otros ncp
A181: 46530 | B181: Comercio por mayor maq., equipo agrícola y sus suministros
A182: 46419 | B182: Comercio por mayor otro tipo de textiles, mercería y accesor
A183: 45301 | B183: Comercio por mayor partes, piezas y accesorios de vehículos
A184: 46491 | B184: Comercio por mayor prod. farmaceut, veterinarios, de tocador
A185: 45401 | B185: Comercio por mayor y menor de motocicletas, partes y accesor
A186: 47737 | B186: Comercio por menor objetos de galerías de arte comerciales
A187: 47718 | B187: Comercio por menor accesorios cuero, exc.calzado y prendas
A188: 47114 | B188: Comercio por menor almacenes minoristas sin despacho bebidas
A189: 47619 | B189: Comercio por menor art. de papelería y otros art.de oficina
A190: 47732 | B190: Comercio por menor combustibles uso doméstico y gas envasado
A191: 47530 | B191: Comercio por menor de alfombras, cubiertas de pared y piso
A192: 47220 | B192: Comercio por menor de bebidas en almacenes especializados
A193: 47300 | B193: Comercio por menor de combustible para vehículos
A194: 47410 | B194: Comercio por menor de computadoras, software, telecomunicaci
A195: 47191 | B195: Comercio por menor de diarios, tabacos, golosinas: Kioscos.
A196: 47420 | B196: Comercio por menor de equipo de audio y video en almac.espec
A197: 47620 | B197: Comercio por menor de grabaciones musicales y videográficas
A198: 47639 | B198: Comercio por menor de otros art. de deporte, exc bicicletas
A199: 47529 | B199: Comercio por menor de otros artículos n.c.p.
A200: 47523 | B200: Comercio por menor de otros materiales de construcción
... 447 more rows

Sheet Hoja3 (hidden)
B1: VALOR UI | C1: 3.2426
C3: CAPACITACION
C4: empresas | D4: participantes | E4: p/e | F4: duracion (hs) | G4: costo total | H4: costo por participante | I4: costo por hora | J4: CT/h/part | K4: subs | L4: %subs
C5: 1 | D5: 6 | E5: =D5/C5 -> 6 | F5: =6*8 -> 48 | G5: =H5*D5 -> 194556 | H5: 32426 | I5: =G5/F5 -> 4053.25 | J5: =I5/D5 -> 675.5416667 | K5: =L5*G5 -> 136189.2 | L5: 0.7
D6: 6 | E6: 6 | F6: 48 | G6: 300000 | H6: 50000 | I6: 6250 | J6: 1041.666667 | M6: Subsidio | N6: % subs
H7: =10000*C1 -> 32426 | J7: =270*C1 -> 875.502 | K7: =60000*C1 -> 194556 | M7: =N7*G6 -> 136189.2 | N7: =K5/G6 -> 0.453964
B8: MAXIMOS
B13: Expediente | C13: Tipo de apoyo | D13: Solicitante | E13: Rut | F13: Servicio o Capacitación Solicitada | G13: Proveedor | H13: Cotización SIN IVA | I13: Duración (meses) | J13: Carga Horaria | K13: Costo hora / Participante | L13: Personas a Capacitar | M13: Subsidio ($) | N13: Porcentaje %
C14: Capacitación a Medida | D14: Manentia Software S.A. | E14: 214786020019 | F14: Capacitacion a Medida en Fortalecimiento de capacidades y formación para mandos medios | G14: SBS TEAM | H14: =D22 -> 500000 | I14: 12 | J14: =D21 -> 33 | K14: =D25 -> 2164.502165 | L14: =D20 -> 7 | M14: =H14*N14 -> 101062.5 | N14: =K19 -> 0.202125
G18: subsidios | I18: subsidio corregido por tope subs | J18: subsidio corregido por tope subs | K18: subsidio corregido por ct/h/p | L18: topes
C19: Proveedor | D19: SBS TEAM | H19: 0.5 | I19: =I22/D22 -> 0.389112 | J19: =J22/D22 -> 0.453964 | K19: =H22/D22 -> 0.202125
C20: participantes | D20: 7 | E20: =D20 -> 7 | H20: =D20 -> 7
C21: duracion | D21: 33 | E21: =D21 -> 33 | H21: =D21 -> 33
C22: costo total | D22: 500000 | E22: =IF(D26<0,D22,D22-D26*D21) -> 202125 | F22: =E22/D22 -> 0.40425 | G22: Subsidio total | H22: =$H$19*E22 -> 101062.5 | I22: =H22-H26 -> 194556 | J22: =J23*H20 -> 226982 | K22: =K19*D22 -> 101062.5 | L22: =60000*C1 -> 194556
C23: costo por participante | D23: =D22/D20 -> 71428.57143 | E23: =E22/E20 -> 28875 | G23: subs/part | H23: =H22/H20 -> 14437.5 | I23: =I22/H20 -> 27793.71429 | J23: =(I23-I27) -> 32426 | K23: =K22/H20 -> 14437.5 | L23: =10000*C1 -> 32426
C24: costo por hora | D24: =D22/D21 -> 15151.51515 | E24: =E22/E21 -> 6125 | K24: =K22/H21 -> 3062.5
C25: costo /h /p | D25: =D22/D21/D20 -> 2164.502165 | E25: =E24/E20 -> 875 | F25: 875 | G25: subs/h/p | H25: =H22/H21/H20 -> 437.5 | K25: =K24/H20 -> 437.5
D26: =(D25-F25)*D20 -> 9026.515152 | G26: factor correcion total | H26: =H22-$L$22 -> -93493.5 | I26: =I22-$L$22 -> 0 | J26: =J22-$L$22 -> 32426
G27: factor correcion/part | H27: =H23-$L$23 -> -17988.5 | I27: =I23-$L$23 -> -4632.285714 | J27: =J23-$L$23 -> 0
